Cogmind - Beta 9.6 @@@ ROGUE MODE // 2020.04.19 @ 22:26:17 Player: Omewes Result: Destroyed by Y-45 Defender with Heavy Assault Rifle Performance ------------- Evolutions (0) 0 Regions Visited (4) 800 Robots Destroyed (21) 105 Value Destroyed (326) 326 Prototype IDs (3) 60 Alien Tech Used (0) 0 Bonus (0) 0 TOTAL SCORE: 1291 Bonus ------- None Cogmind --------- Core Integrity 0/250 Matter 297/300 Energy 100/100 System Corruption 0% Temperature Cool (9) Movement Walking (120) Location -9/Mines Parts ------- > --- POWER (1) -------- (None) > --- PROPULSION (2) --- Aluminum Leg Aluminum Leg > --- UTILITY (2) ------ Medium Storage Unit Targeting Computer > --- WEAPON (2) ------- Light Assault Rifle Light Assault Rifle > --- INVENTORY (8) ---- Aluminum Leg Aluminum Leg Heat Sink Utility Shielding Utility Shielding Light Assault Rifle Light Assault Rifle Rocket Launcher Peak State ------------ > --- POWER ------------ Ion Engine > --- PROPULSION ------- Aluminum Leg Aluminum Leg > --- UTILITY ---------- Small Storage Unit Targeting Computer > --- WEAPON ----------- Light Assault Rifle Light Assault Rifle > --- INVENTORY -------- Aluminum Leg Structural Scanner Small Laser Light Assault Rifle [Rating: 7] Favorites ----------- Power Ion Engine Engine Ion Engine Propulsion Aluminum Leg Leg Aluminum Leg Utility Targeting Computer Storage Small Storage Unit Processor Targeting Computer Weapon Light Assault Rifle Energy Gun Small Laser Ballistic Gun Light Assault Rifle Build | -11 -10 -10 -10 -9 ------- Run | Scr Mat Min Exi Min Slots Evolved . | . . . . . Power . | . . . . . Propulsion . | . . . . . Utility . | . . . . . Weapon . | . . . . . Parts Attached 20 | 6 9 . . 5 Power 2 | 1 . . . 1 Engine 2 | 1 . . . 1 Core . | . . . . . Reactor . | . . . . . Propulsion 5 | 2 3 . . . Treads . | . . . . . Leg 5 | 2 3 . . . Wheel . | . . . . . Hover . | . . . . . Flight . | . . . . . Utility 3 | 1 2 . . . Device . | . . . . . Storage 2 | 1 1 . . . Processor 1 | . 1 . . . Hackware . | . . . . . Protection . | . . . . . Artifact . | . . . . . Weapon 10 | 2 4 . . 4 Energy Gun 4 | 2 2 . . . Energy Cannon . | . . . . . Ballistic Gun 6 | . 2 . . 4 Ballistic Cannon . | . . . . . Launcher . | . . . . . Special Weapon . | . . . . . Impact Weapon . | . . . . . Slashing Weapon . | . . . . . Piercing Weapon . | . . . . . Special Melee Weapon . | . . . . . Unidentified Prototypes . | . . . . . Parts Lost 6 | . 2 . . 4 Power 2 | . . . . 2 Propulsion . | . . . . . Utility . | . . . . . Weapon 4 | . 2 . . 2 Highest Loss Streak 3 | . 1 . . 3 Average Slot Usage (%) 94 | . 92 100 100 98 Engine 13 | . 14 14 14 13 Leg 28 | . 28 28 28 28 Storage 14 | . 14 14 14 14 Processor 9 | . 7 14 14 14 Energy Gun 11 | . 9 28 28 1 Ballistic Gun 16 | . 18 . . 25 Naked Turns . | . . . . . Heaviest Build 15 | 12 15 15 15 13 Greatest Support 20 | 20 20 20 20 20 Greatest Overweight (x) . | . . . . . Average Overweight (x) . | . . . . . Largest Inventory Capacity 8 | 6 8 8 8 8 Average Capacity 6 | 5 6 8 8 8 Most Carried 8 | . 8 8 8 8 Average Carried 4 | . 3 7 8 7 Final Capacity 8 | 6 8 8 8 8 Final Carried 8 | . 8 8 8 8 Class Distribution -------------------- 100% | Mutant Dominant Class ---------------- Mutant | -10/Materials Mutant | -10/Mines Mutant | -10/Exiles Mutant | -9/Mines Resources | -11 -10 -10 -10 -9 ----------- Run | Scr Mat Min Exi Min Matter Collected 501 | 226 219 . . 56 Remotely . | . . . . . Salvage Created 518 | 23 361 . . 134 Parts 45 | 3 21 . . 21 Haulers Intercepted 2 | . 2 . . . Recyclers Shooed 1 | . 1 . . . Parts Field Recycled . | . . . . . Retrieved Matter . | . . . . . Parts Self-Destructed . | . . . . . Prevented . | . . . . . Kills | -11 -10 -10 -10 -9 ------- Run | Scr Mat Min Exi Min Combat Hostiles Destroyed 17 | . 10 . . 7 Guns 17 | . 10 . . 7 Classes Destroyed 6 | 1 4 . . 1 Worker 1 | . 1 . . . Tunneler 1 | 1 . . . . Hauler 2 | . 2 . . . Swarmer 12 | . 6 . . 6 Grunt 4 | . 4 . . . Sentry 1 | . . . . 1 Best Kill Streak 3 | 1 3 . . 3 Combat Bots Only 3 | . 2 . . 3 Max Kills in Single Turn 1 | 1 1 . . 1 Gunslinging . | . . . . . Exploded . | . . . . . Melee . | . . . . . Uniques/NPCs Destroyed . | . . . . . Combat | -11 -10 -10 -10 -9 -------- Run | Scr Mat Min Exi Min Damage Taken 989 | . 589 . . 400 Core 253 | . 160 . . 93 Absorbed by Shields . | . . . . . Core Remaining (%) 100 | 100 . . . . Volleys Fired 92 | 1 74 . . 17 Largest 2 | 2 2 . . 2 Hottest 90 | 90 90 . . 80 Shots Fired 170 | 2 135 . . 33 Gun 170 | 2 135 . . 33 Cannon . | . . . . . Launcher . | . . . . . Special . | . . . . . Kinetic 124 | . 100 . . 24 Thermal 46 | 2 35 . . 9 Explosive . | . . . . . Electromagnetic . | . . . . . Robot Hit Streak 18 | 1 18 . . 7 Robot Miss Streak 3 | . 3 . . 2 Penetration Max . | . . . . . Secondary Targets 1 | . . . . 1 Max Gunslinging Chain 1 | . . . . 1 Shots Hit Robots 121 | 1 95 . . 25 Core Hits 39 | 1 25 . . 13 Critical Hits . | . . . . . Critical Kills . | . . . . . Critical Parts Destroyed . | . . . . . Melee Attacks . | . . . . . Impact . | . . . . . Slashing . | . . . . . Piercing . | . . . . . Sneak Attacks . | . . . . . Combat Hostiles . | . . . . . Follow-up Attacks . | . . . . . Damage Inflicted 1038 | 12 813 . . 213 Guns 1038 | 12 813 . . 213 Cannons . | . . . . . Explosions . | . . . . . Melee . | . . . . . Ramming . | . . . . . Kinetic 657 | . 499 . . 158 Thermal 381 | 12 314 . . 55 Explosive . | . . . . . Electromagnetic . | . . . . . Impact . | . . . . . Slashing . | . . . . . Piercing . | . . . . . Highest Corruption . | . . . . . Average Corruption . | . . . . . Corruption Purged . | . . . . . Overload Shots . | . . . . . Overflow Damage . | . . . . . Projectiles . | . . . . . Explosions . | . . . . . Melee . | . . . . . Knockbacks . | . . . . . Impact . | . . . . . Kinetic . | . . . . . Secondary . | . . . . . Self-Inflicted Damage . | . . . . . Shots . | . . . . . Rammed . | . . . . . Targets Rammed . | . . . . . Kicked . | . . . . . Crushed . | . . . . . Highest Temperature 138 | 30 138 . . 20 Average Temperature 40 | 18 46 . . 11 Received Heat Transfer 321 | . 258 . . 63 Siege Activations . | . . . . . Robots Corrupted . | . . . . . Combat Hostiles . | . . . . . Parts Fried . | . . . . . Impact Corruptions . | . . . . . Robots Melted . | . . . . . Combat Hostiles . | . . . . . Parts Melted 2 | . 2 . . . Heat Transferred 946 | 37 784 . . 125 Parts Sabotaged . | . . . . . Parts Stolen . | . . . . . Parts Stripped . | . . . . . Power Chain Reactions . | . . . . . Missiles Intercepted . | . . . . . Alert | -11 -10 -10 -10 -9 ------- Run | Scr Mat Min Exi Min Peak Influence 210 | 5 210 22 . 155 Average Influence 59 | . 62 22 . 78 Maximum Alert Level 1 | . 1 . . . Low Security (%) 93 | 100 92 100 . 100 Level 1 6 | . 7 . . . Level 2 . | . . . . . Level 3 . | . . . . . Level 4 . | . . . . . Level 5 . | . . . . . High Security . | . . . . . Max Security . | . . . . . Squads Dispatched 1 | . 1 . . . Investigation . | . . . . . Extermination . | . . . . . Reinforcement 1 | . 1 . . . Assault . | . . . . . Garrison . | . . . . . Intercept . | . . . . . Construction Impeded . | . . . . . Haulers Reinforced . | . . . . . Stealth | -11 -10 -10 -10 -9 --------- Run | Scr Mat Min Exi Min Distress Signals 3 | . 3 . . . Communications Jammed . | . . . . . Distress Signals . | . . . . . Times Spotted 35 | . 26 . . 9 Peak Tracking Total 4 | . 4 . . 4 Tactical Retreats 4 | . 3 . . 1 Traps | -11 -10 -10 -10 -9 ------- Run | Scr Mat Min Exi Min Traps Triggered . | . . . . . Indirectly . | . . . . . Trap Hack Attempts . | . . . . . Triggered . | . . . . . Disarmed . | . . . . . Reprogrammed . | . . . . . Reused . | . . . . . Traps Extracted . | . . . . . Installed . | . . . . . Triggered . | . . . . . Machines | -11 -10 -10 -10 -9 ---------- Run | Scr Mat Min Exi Min Machines Disabled . | . . . . . Max in Single Turn . | . . . . . Machines Sabotaged . | . . . . . Garrisons Compromised . | . . . . . Overloaded Fab Kills . | . . . . . Fab Network Shutdowns . | . . . . . Hacking | -11 -10 -10 -10 -9 --------- Run | Scr Mat Min Exi Min Machines Accessed 5 | . 4 . 1 . Terminals 4 | . 4 . . . Fabricators . | . . . . . Repair Stations . | . . . . . Recycling Units . | . . . . . Scanalyzers . | . . . . . Garrison Access . | . . . . . Total Hacks 8 | . 7 . 1 . Successful 4 | . 3 . 1 . Failed 4 | . 4 . . . Catastrophic . | . . . . . Database Lockouts . | . . . . . Manual 5 | . 5 . . . Terminals 7 | . 7 . . . Fabricators . | . . . . . Repair Stations . | . . . . . Recycling Units . | . . . . . Scanalyzers . | . . . . . Garrison Access . | . . . . . Terminal Hacks 3 | . 2 . 1 . Record 1 | . . . 1 . Prototype ID Bank 1 | . 1 . . . Branch Access Points 1 | . 1 . . . Fabricator Hacks . | . . . . . Repair Station Hacks . | . . . . . Recycling Unit Hacks . | . . . . . Scanalyzer . | . . . . . Garrison Access Hacks . | . . . . . Unauthorized Hacks 1 | . 1 . . . Terminals 1 | . 1 . . . Track 1 | . 1 . . . Fabricators . | . . . . . Repair Stations . | . . . . . Recycling Units . | . . . . . Scanalyzers . | . . . . . Garrison Access . | . . . . . Data Cores Recovered . | . . . . . Used . | . . . . . Hacking Detections 4 | . 4 . . . Full Trace Events . | . . . . . Feedback Events . | . . . . . Feedback Blocked . | . . . . . Robot Schematics Acquired . | . . . . . Robots Built . | . . . . . Matter . | . . . . . Time . | . . . . . Total Robot Build Rating . | . . . . . Part Schematics Acquired . | . . . . . Parts Built . | . . . . . Matter . | . . . . . Time . | . . . . . Total Part Build Rating . | . . . . . Parts Repaired . | . . . . . Time . | . . . . . Parts Recycled . | . . . . . Recycled Matter . | . . . . . Retrieved Matter . | . . . . . Retrieved Components . | . . . . . Parts Scanalyzed . | . . . . . Part Schematics Acquired . | . . . . . Parts Damaged . | . . . . . Bothacking | -11 -10 -10 -10 -9 ------------ Run | Scr Mat Min Exi Min Used RIF Installer . | . . . . . Robots Hacked . | . . . . . Non-combat . | . . . . . Combat . | . . . . . Robot Hacks Applied . | . . . . . Relay Couplers Released . | . . . . . Robots Rewired . | . . . . . Allies Hacked . | . . . . . Hacks Repelled . | . . . . . Allies | -11 -10 -10 -10 -9 -------- Run | Scr Mat Min Exi Min Total Allies . | . . . . . Largest Group . | . . . . . Highest-Rated Group . | . . . . . Highest-Rated Ally . | . . . . . Total Orders . | . . . . . Ally Attacks . | . . . . . Total Damage . | . . . . . Kills . | . . . . . Allies Corrupted . | . . . . . Allies Melted . | . . . . . Intel | -11 -10 -10 -10 -9 ------- Run | Scr Mat Min Exi Min Robot Analysis Total . | . . . . . Derelict Logs Recovered 1 | . . . . 1 Drone Launches . | . . . . . Drone Recoveries . | . . . . . Exploration | -11 -10 -10 -10 -9 ------------- Run | Scr Mat Min Exi Min Turns Passed 1406 | 59 960 56 165 166 Spaces Moved 909 | 41 593 46 138 91 Core 6 | 6 . . . . Treads . | . . . . . Legs 903 | 35 593 46 138 91 Wheels . | . . . . . Hover . | . . . . . Flight . | . . . . . Fastest Speed 50 | 50 120 120 120 120 Average Speed 119 | 109 120 120 120 120 Slowest Speed 120 | 120 120 120 120 120 Overloaded Moves . | . . . . . Propulsion Burnouts . | . . . . . Robots Hopped . | . . . . . Cave-ins Triggered . | . . . . . Exploration Rate (%) 32 | 3 67 14 48 29 Regions Visited 4 Branch Regions 3 Pre-discovered Areas 1 | . . . 1 . Known Exits Taken 1 | . 1 . . . Unknown Exits Taken 3 | 1 . 1 1 . Scrap Searched . | . . . . . Spaces Dug . | . . . . . Terrain Destroyed . | . . . . . Melee . | . . . . . Projectile . | . . . . . AOE . | . . . . . Actions | -11 -10 -10 -10 -9 --------- Run | Scr Mat Min Exi Min Total 1079 | 50 727 47 137 118 Wait 44 | 3 39 . . 2 Move 905 | 40 592 45 137 91 Hop . | . . . . . Pick Up 10 | . 8 1 . 1 Fast Attach 11 | 6 3 . . 2 Attach 2 | . 1 . . 1 Detach 1 | . 1 . . . Swap 7 | . 5 . . 2 Drop 7 | . 4 1 . 2 Fire 92 | 1 74 . . 17 Melee . | . . . . . Ram . | . . . . . Kick . | . . . . . Crush . | . . . . . Escape Stasis . | . . . . . Rewire . | . . . . . Trap . | . . . . . Miscellaneous . | . . . . . Route ------- -11/Scrapyard -10/Materials (discovered 3 exits: [*Mat x2] / *Min) -10/Mines (discovered 2 exits: [*Mat] / *Exi) -10/Exiles -9/Mines (discovered 1 exit: [*Mat]) History --------- Turn | Location | Event 3 | -11/Scrapyard | Discovered new exit (range 15) 60 | -11/Scrapyard | Entered Materials 303 | -10/Materials | Build established: Mutant 499 | -10/Materials | Discovered new exit (range 9) 698 | -10/Materials | Core integrity fell below 50% 732 | -10/Materials | Discovered new exit (range 15) 914 | -10/Materials | Identified exit to Mines 1020 | -10/Materials | Entered Mines 1045 | -10/Mines | Received a Rocket Launcher from a helpful Derelict 1046 | -10/Mines | Discovered new exit (range 14) 1070 | -10/Mines | Deemed a non-threat by the Exiles lab entrance 1071 | -10/Mines | Discovered new exit (range 5) 1076 | -10/Mines | Entered Exiles 1104 | -10/Exiles | Met 8R-AWN 1126 | -10/Exiles | Met EX-HEX 1174 | -10/Exiles | Met EX-DEC 1178 | -10/Exiles | Learned location of Zion (-7) 1226 | -10/Exiles | Discovered new exit (range 14) 1241 | -10/Exiles | Entered Mines 1296 | -9/Mines | Lost 3 parts (1p2w) 1363 | -9/Mines | Discovered new exit (range 11) 1399 | -9/Mines | Core integrity fell below 20% 1407 | -9/Mines | Destroyed by Y-45 Defender with Heavy Assault Rifle Last Messages --------------- 01268_ Acquired Lgt. Ion Engine. 01270_ Acquired 14 matter. 01272_ Acquired Lgt. Assault Rifle. 01273_ Acquired 14 matter. 01282_ Acquired 2 matter. 01283_ Dropped Lgt. Assault Rifle. 01286_ Acquired Lgt. Assault Rifle. 01288_ Acquired 8 matter. 01330_ S-10 Pest destroyed. 01339_ Acquired 8 matter. 01344_ R-06 Scavenger collects Lgt. Assault Rifle. 01348_ R-06 Scavenger collects Flight Unit. 01349_ Acquired 10 matter. 01352_ R-06 Scavenger collects Lgt. Ion Engine. 01355_ R-06 Scavenger collects Flight Unit. 01363_ EXIT=FOUND 01367_ Acquired derelict log, extracted data. Data stored: Factory entrances (x1). 01399_ Y-45 Defender destroyed. 01404_ Lgt. Ion Engine destroyed. Map ----- +----------------------------------------------------+ | ????????????????????????????????????????? | | ??????????????????????????????#####?????? | | ?????????????????????????????## ##????? | | ??????????????????????######## #????? | | ????################??# ###### | | ????# #??# | | ????# #### ### ####### | | ????# ## #?## ####?????? | | ????# =% ###??# ###????????? | | ????# """ """ [[* #????# #??????????? | | ???????"" """ = = ####????# #??????????? | | ???????"" """ #???????#=#??????????? | | ???????"" """ #??###??#%#??????????# | | ????# #?## #?#*#??#####?? | | ????# ### ##=#?## ### # | | ????######### # = %### # | | ????????????# # *% # | | ????????????# ########## ### | | ????????????######????????## | | ???????????????????????????## | | ????????????????????????????###### ##### | | ?????????????????????????????????# #???? | | ?????????????????###############?# #???? | | ???????????###?### ### #???? | | ??????????##" ## #???? | | ??????????#"" #@ < ### #???? | | ??????????#|! %/[ #?# ##??? | | ??????????#!! Y! #?# #??? | | ??????????#"" # #?# #??? | | ??????????##" ## #?## #??? | | ???????????###?### #??# #??? | | ?????????????????# #??# #??? | | ?????????????????###############??# #??? | | ??????????????????????????????????# #??? | | ??????????????????????????????????# #??? | | ??????????????????????????????????# #??? | | ??????????????????????????????????# #??? | | ??????????????????????????????????# ??? | | ?????????????????????????????????? ??? | | ?????????????????????????????????? ##??? | | ?????????????????????????????????? #????? | | ??????????????????????????????????#?????? | | ????????????????????????????????????????? | | ????????????????????????????????????????? | | ????????????????????????????????????????? | | ????????????????????????????????????????? | | ????????????????????????????????????????? | | ????????????????????????????????????????? | | ????????????????????????????????????????? | | ????????????????????????????????????????? | +----------------------------------------------------+ Best States ------------- Heat Dissipation 25 Energy Generation 10 Energy Capacity 250 Matter Stores 300 Matter Capacity 300 Sight Range 16 Terrain Scan Density 10 Evasion (%) 40 Targeting Accuracy 5 Item Schematics ----------------- None Robot Schematics ------------------ None Fabricated ------------ Nothing Alien Tech Used ----------------- None Achievements -------------- None Challenges ------------ None Game ------ Seed AssaultIntegrityBooster Manual? 0 Play Time 00:10:04 Cumulative 205.5 hours Start 2020.04.19 @ 22:16:50 End 2020.04.19 @ 22:26:17 Sessions 1 Manual Loads 0 Difficulty Rogue Special Mode None Game No. 154 Rogue 154 Adventurer 0 Explorer 0 Win Type - Total 10 Types 5/0/1/1/0/2/1 Lore% 75 Gallery% 79 Achievement% 72 Wizard Run 0 Options --------- ASCII 0 Keyboard 1 Movement Numpad Keybinds 0 Fullscreen 1 Font 12/Terminus Map View 83x54 Tactical HUD 1 Map Filters NONE Filters LOW_CONTRAST(13,24,33) Steam 1 RUN: c208706a-1ba9-45f1-a136-40fa4b0458e5